Workbook

Sheet Használati utmutató
A1: Minden lapon a szürkeszínű mezőket változtasd, a többi számolt mező.
A3: A tulajdonság képesség lapon kell beállítani az adott képességek alapértékét, és külön lehet a módosítókat is. Azért van így, ha a torony előtt öltözöl akkor talán könnyebb követni.
A4: A középső fölső táblában azt látod, hogy egy adott típusú különböző szintű próba mekkora eséllyel sikerül. Itt hamar látszik, hogy mire kell még gyúrni.
A5: A lap közepén a torony adott szintjének sikeres végrehajtására látod az esélyeket. A mellete levő szürke mezőkben a próbálkozások számát megadva azt látod, hogy mekkora eséllyel sikerül
A6: a torony szintje annyi próbálkozásból.
A8: A szakértelem próbák fülön ne állíts semmit.
A10: A Harc fülön, amelyik szörnyet meg tudod ölni, annak a neve mellé 1-et írj, amit nem oda 0-t.
A12: Az infók fülön amelyik szörnyet-tárgyat ismered, oda 1-et, amit nem oda 0-t.
A14: A tárgykészítés lapon, amelyik alapanyag maradéktalanul megvan, oda 1-et, ami nincs oda 0-t.
A15: Ha van feneketlen bugyrod, akkor a tárgykészítés esélye javul, de ezt a táblázat nem kezeli.

Sheet Tulajdonság - képesség
B1: Összesen | C1: Bónusz | D1: Alap | G1: Szint
A2: csapdaészlelés | B2: =C2+D2 -> 17 | C2: 8 | D2: 9 | G2: 1 | H2: 2 | I2: 3 | N2: Szakértelem | O2: Harc | P2: Info | Q2: Készítés
A3: zárnyitás | B3: =C3+D3 -> 20 | C3: 11 | D3: 9 | F3: Szakértelem | G3: ='Szakértlem próbák'!E17 -> 1 | H3: ='Szakértlem próbák'!F17 -> 0.6875 | I3: ='Szakértlem próbák'!G17 -> 0.25 | M3: 1. szint | N3: 0.3 | O3: 0.3 | P3: 0.2 | Q3: 0.2
A4: bányászat | B4: 13 | D4: 13 | F4: Harc | G4: =Harc!B18 -> 1 | H4: =Harc!D18 -> 1 | I4: =Harc!F18 -> 0.5882352941 | M4: 2. szint | N4: 0.3 | O4: 0.3 | P4: 0.2 | Q4: 0.2
A5: mászás | B5: 10 | D5: 10 | F5: Infó | G5: =Infók!B32 -> 1 | H5: =Infók!D35 -> 1 | I5: =Infók!F53 -> 1 | M5: 3. szint | N5: 0.3 | O5: 0.3 | P5: 0.2 | Q5: 0.2
A6: szerencsejáték | B6: 11 | C6: 9 | D6: 2 | F6: Tárgykészítés | G6: =Tárgykészítés!O19 -> 0.8333333333 | H6: =Tárgykészítés!Q19 -> 1 | I6: =Tárgykészítés!S19 -> 0.9444444444 | M6: 4. szint | N6: 0.35 | O6: 0.3 | P6: 0.2 | Q6: 0.15
A7: szörnyidomítás | B7: 7 | D7: 7 | M7: 5. szint | N7: 0.35 | O7: 0.3 | P7: 0.2 | Q7: 0.15
A8: szörnyismeret | B8: 11 | D8: 11 | G8: Szükséges próbák száma | J8: Esély | K8: Fordulók száma | M8: 6. szint | N8: 0 | O8: 1 | P8: 0 | Q8: 0
A9: titkosírás | B9: 8 | D9: 8 | F9: 1. szint | G9: =($N3*$G$3+$O3*$G$4+$P3*$G$5+$Q3*$G$6)*($N3*$G$3+$O3*$G$4+$P3*$G$5+$Q3*$G$6)*($N3*$H$3+$O3*$H$4+$P3*$H$5+$Q3*$H$6) -> 0.8468402778 | I9: 1 | J9: =1-BINOMDIST(0,I9,G9,0) -> 0.8468402778 | K9: =ROUNDUP(I9/3,0) -> 1 | M9: 7. szint | N9: 1 | O9: 0 | P9: 0 | Q9: 0
A10: zene | B10: 16 | C10: 3 | D10: 13 | F10: 2. szint | G10: =($N4*$G$3+$O4*$G$4+$P4*$G$5+$Q4*$G$6)*($N4*$H$3+$O4*$H$4+$P4*$H$5+$Q4*$H$6)*($N4*$H$3+$O4*$H$4+$P4*$H$5+$Q4*$H$6)*($N4*$I$3+$O4*$I$4+$P4*$I$5+$Q4*$I$6) -> 0.5083895601 | I10: 3 | J10: =1-BINOMDIST(0,I10,G10,0) -> 0.8811871835 | K10: =ROUNDUP(I10/3,0) -> 1 | M10: 8. szint | N10: 0.35 | O10: 0.3 | P10: 0.2 | Q10: 0.15
A11: felderítés | B11: 15 | C11: 6 | D11: 9 | F11: 3. szint | G11: =($N5*$G$3+$O5*$G$4+$P5*$G$5+$Q5*$G$6)*($N5*$H$3+$O5*$H$4+$P5*$H$5+$Q5*$H$6)*($N5*$H$3+$O5*$H$4+$P5*$H$5+$Q5*$H$6)*($N5*$I$3+$O5*$I$4+$P5*$I$5+$Q5*$I$6)*($N5*$I$3+$O5*$I$4+$P5*$I$5+$Q5*$I$6) -> 0.3255520729 | I11: 4 | J11: 0.7930841798 | K11: 2
A12: harcművészet | B12: 15 | D12: 15 | F12: 4. szint | G12: =($N6*$G$3+$O6*$G$4+$P6*$G$5+$Q6*$G$6)*($N6*$H$3+$O6*$H$4+$P6*$H$5+$Q6*$H$6)*($N6*$H$3+$O6*$H$4+$P6*$H$5+$Q6*$H$6)*($N6*$I$3+$O6*$I$4+$P6*$I$5+$Q6*$I$6)*($N6*$I$3+$O6*$I$4+$P6*$I$5+$Q6*$I$6)*($N6*$I$3+$O6*$I$4+$P6*$I$5+$Q6*$I$6) -> 0.171803547 | I12: 8 | J12: 0.7786564204 | K12: 3
A13: pszi | B13: 11 | D13: 11 | F13: 5. szint | G13: =($N7*$H$3+$O7*$H$4+$P7*$H$5+$Q7*$H$6)*($N7*$H$3+$O7*$H$4+$P7*$H$5+$Q7*$H$6)*($N7*$I$3+$O7*$I$4+$P7*$I$5+$Q7*$I$6)*($N7*$I$3+$O7*$I$4+$P7*$I$5+$Q7*$I$6)*($N7*$I$3+$O7*$I$4+$P7*$I$5+$Q7*$I$6)*($N7*$I$3+$O7*$I$4+$P7*$I$5+$Q7*$I$6)*B19 -> 0.09604673411 | I13: 14 | J13: 0.7567551275 | K13: 5
A14: vadászat | B14: 11 | D14: 11 | F14: 6. szint | G14: =G4*G4*H4*H4*I4*I4 -> 0.3460207612 | I14: 4 | J14: 0.8170822521 | K14: 2
A15: gyógyítás | B15: 39 | D15: 39 | F15: 7. szint | G15: =G3*G3*H3*H3*I3*I3 -> 0.02954101562 | I15: 48 | J15: 0.7629145614 | K15: 16
A16: lopás | B16: 17 | C16: 16 | D16: 1 | F16: 8. szint | G16: =($N10*$G$3+$O10*$G$4+$P10*$G$5+$Q10*$G$6)*($N10*$G$3+$O10*$G$4+$P10*$G$5+$Q10*$G$6)*($N10*$G$3+$O10*$G$4+$P10*$G$5+$Q10*$G$6)*($N10*$H$3+$O10*$H$4+$P10*$H$5+$Q10*$H$6)*($N10*$H$3+$O10*$H$4+$P10*$H$5+$Q10*$H$6)*($N10*$H$3+$O10*$H$4+$P10*$H$5+$Q10*$H$6)*($N10*$I$3+$O10*$I$4+$P10*$I$5+$Q10*$I$6)*($N10*$I$3+$O10*$I$4+$P10*$I$5+$Q10*$I$6)*($N10*$I$3+$O10*$I$4+$P10*$I$5+$Q10*$I$6) -> 0.1454575402 | I16: 9 | J16: 0.7570019335 | K16: 3
A17: rejtőzködés | B17: 15 | C17: 3 | D17: 12
A19: Massza ölés esélye | B19: 0.9
A21: gyémántsisak (#467) | B21: +3 felderítés, +3 csapdaészlelés
A22: ryuku vadászing (#1158) | B22: +2 vadászat, +2 szörnyismeret
A23: Fairlight köpenye (#303) | B23: +3 felderítés
A24: merénylő köpenye (#1728) | B24: +5 rejtőzködés
A25: tolvajkesztyű (#1730) | B25: +8 lopás, +2 csapdaészlelés, +8 zárnyitás
A26: hoarián saru (#1346) | B26: +5 lopás
A27: muzsikus füles (#1657) | B27: +3 zene
A28: szerencsetalizmán (#366) | B28: +4 szerencsejáték
A29: Lucius szerencsepénze (#1759) | B29: +5 szerencsejáték
A30: láthatalanság (#76) | B30: +5 lopás
A31: tolvajvér (#364) | B31: +3 lopás, +3 csapdaészlelés, +3 zárnyitás, +3 rejtőzködés

Sheet Szakértlem próbák
A1: csapdaészlelés | B1: 3 | C1: 5 | D1: 11 | E1: =IF(B1<='Tulajdonság - képesség'!$B2,1,0) -> 1 | F1: =IF(C1<='Tulajdonság - képesség'!$B2,1,0) -> 1 | G1: =IF(D1<='Tulajdonság - képesség'!$B2,1,0) -> 1
A2: zárnyitás | B2: 3 | C2: 5 | D2: 11 | E2: =IF(B2<='Tulajdonság - képesség'!$B3,1,0) -> 1 | F2: =IF(C2<='Tulajdonság - képesség'!$B3,1,0) -> 1 | G2: =IF(D2<='Tulajdonság - képesség'!$B3,1,0) -> 1
A3: bányászat | B3: 4 | C3: 8 | D3: 14 | E3: =IF(B3<='Tulajdonság - képesség'!$B4,1,0) -> 1 | F3: =IF(C3<='Tulajdonság - képesség'!$B4,1,0) -> 1 | G3: =IF(D3<='Tulajdonság - képesség'!$B4,1,0) -> 0
A4: mászás | B4: 4 | C4: 8 | D4: 14 | E4: =IF(B4<='Tulajdonság - képesség'!$B5,1,0) -> 1 | F4: =IF(C4<='Tulajdonság - képesség'!$B5,1,0) -> 1 | G4: =IF(D4<='Tulajdonság - képesség'!$B5,1,0) -> 0
A5: szerencsejáték | B5: 4 | C5: 8 | D5: 14 | E5: =IF(B5<='Tulajdonság - képesség'!$B6,1,0) -> 1 | F5: =IF(C5<='Tulajdonság - képesség'!$B6,1,0) -> 1 | G5: =IF(D5<='Tulajdonság - képesség'!$B6,1,0) -> 0
A6: szörnyidomítás | B6: 4 | C6: 8 | D6: 14 | E6: =IF(B6<='Tulajdonság - képesség'!$B7,1,0) -> 1 | F6: =IF(C6<='Tulajdonság - képesség'!$B7,1,0) -> 0 | G6: =IF(D6<='Tulajdonság - képesség'!$B7,1,0) -> 0
A7: szörnyismeret | B7: 4 | C7: 8 | D7: 14 | E7: =IF(B7<='Tulajdonság - képesség'!$B8,1,0) -> 1 | F7: =IF(C7<='Tulajdonság - képesség'!$B8,1,0) -> 1 | G7: =IF(D7<='Tulajdonság - képesség'!$B8,1,0) -> 0
A8: titkosírás | B8: 4 | C8: 8 | D8: 14 | E8: =IF(B8<='Tulajdonság - képesség'!$B9,1,0) -> 1 | F8: =IF(C8<='Tulajdonság - képesség'!$B9,1,0) -> 1 | G8: =IF(D8<='Tulajdonság - képesség'!$B9,1,0) -> 0
A9: zene | B9: 4 | C9: 8 | D9: 14 | E9: =IF(B9<='Tulajdonság - képesség'!$B10,1,0) -> 1 | F9: =IF(C9<='Tulajdonság - képesség'!$B10,1,0) -> 1 | G9: =IF(D9<='Tulajdonság - képesség'!$B10,1,0) -> 1
A10: felderítés | B10: 9 | C10: 14 | D10: 24 | E10: =IF(B10<='Tulajdonság - képesség'!$B11,1,0) -> 1 | F10: =IF(C10<='Tulajdonság - képesség'!$B11,1,0) -> 1 | G10: =IF(D10<='Tulajdonság - képesség'!$B11,1,0) -> 0
A11: harcművészet | B11: 9 | C11: 14 | D11: 24 | E11: =IF(B11<='Tulajdonság - képesség'!$B12,1,0) -> 1 | F11: =IF(C11<='Tulajdonság - képesség'!$B12,1,0) -> 1 | G11: =IF(D11<='Tulajdonság - képesség'!$B12,1,0) -> 0
A12: pszi | B12: 9 | C12: 14 | D12: 24 | E12: =IF(B12<='Tulajdonság - képesség'!$B13,1,0) -> 1 | F12: =IF(C12<='Tulajdonság - képesség'!$B13,1,0) -> 0 | G12: =IF(D12<='Tulajdonság - képesség'!$B13,1,0) -> 0
A13: vadászat | B13: 9 | C13: 14 | D13: 24 | E13: =IF(B13<='Tulajdonság - képesség'!$B14,1,0) -> 1 | F13: =IF(C13<='Tulajdonság - képesség'!$B14,1,0) -> 0 | G13: =IF(D13<='Tulajdonság - képesség'!$B14,1,0) -> 0
A14: gyógyítás | B14: 10 | C14: 20 | D14: 30 | E14: =IF(B14<='Tulajdonság - képesség'!$B15,1,0) -> 1 | F14: =IF(C14<='Tulajdonság - képesség'!$B15,1,0) -> 1 | G14: =IF(D14<='Tulajdonság - képesség'!$B15,1,0) -> 1
A15: lopás | B15: 10 | C15: 20 | D15: 30 | E15: =IF(B15<='Tulajdonság - képesség'!$B16,1,0) -> 1 | F15: =IF(C15<='Tulajdonság - képesség'!$B16,1,0) -> 0 | G15: =IF(D15<='Tulajdonság - képesség'!$B16,1,0) -> 0
A16: rejtőzködés | B16: 10 | C16: 20 | D16: 30 | E16: =IF(B16<='Tulajdonság - képesség'!$B17,1,0) -> 1 | F16: =IF(C16<='Tulajdonság - képesség'!$B17,1,0) -> 0 | G16: =IF(D16<='Tulajdonság - képesség'!$B17,1,0) -> 0
E17: =SUM(E1:E16)/COUNTA($A$1:$A$16) -> 1 | F17: =SUM(F1:F16)/COUNTA($A$1:$A$16) -> 0.6875 | G17: 0.25

Sheet Harc
A1: áeratikus hasnyák | B1: 1 | C1: aurapollátor | D1: 1 | E1: éjkornis | F1: 1
A2: agyagelementál | B2: 1 | C2: bávatag golombár | D2: 1 | E2: gránitelementál | F2: 1
A3: arató csattanat | B3: 1 | C3: borzalmas varkaudar | D3: 1 | E3: hordóagyú mameluk | F3: 1
A4: autentikus vámpír | B4: 1 | C4: ezoterikus mardel | D4: 1 | E4: káoszteknőc
A5: csontváz lord | B5: 1 | C5: ekharion | D5: 1 | E5: kputtyintó csalán
A6: dehidrátor | B6: 1 | C6: halálosztó kain | D6: 1 | E6: kultúrmasztodon | F6: 1
A7: élőholt quwarg | B7: 1 | C7: jégtroll | D7: 1 | E7: mnebolath | F7: 1
A8: élőholt sullár | B8: 1 | C8: noth szellem | D8: 1 | E8: nanda | F8: 1
A9: epokitféreg | B9: 1 | C9: óriásféreg | D9: 1 | E9: norpadolótika | F9: 1
A10: kardfogú fülemüle | B10: 1 | C10: quwarg nagymester | D10: 1 | E10: ongóliant
A11: orgoró | B11: 1 | C11: quwarg parafenomén | D11: 1 | E11: Orkhan Thai | F11: 1
A12: quwarg királynő | B12: 1 | C12: szubreális vámpír | D12: 1 | E12: orbitális mackósajt
A13: részeg kalandozó | B13: 1 | C13: szutykos remák | D13: 1 | E13: őrült varázsló | F13: 1
A14: tüskés harci gromak | B14: 1 | C14: Tguarkhan | D14: 1 | E14: tüskés gigaféreg
A15: vark. nekromanta | B15: 1 | C15: vadász quwarg | D15: 1 | E15: tyrannoszaurusz rex
A16: varkaudar behemót | B16: 1 | C16: velociraptor | D16: 1 | E16: woorgard
A17: Zinthurg | B17: 1 | C17: zombi mester | D17: 1 | E17: zoloboo sámán | F17: 1
B18: =SUM(B1:B17)/COUNTA($A$1:$A$17) -> 1 | D18: =SUM(D1:D17)/COUNTA($C$1:$C$17) -> 1 | F18: =SUM(F1:F17)/COUNTA($E$1:$E$17) -> 0.5882352941

Sheet Infók
A1: agyartőr | B1: 1 | C1: agyagelementál | D1: 1 | E1: acélkolosszus | F1: 1
A2: árnyékrája | B2: 1 | C2: árnyéksár | D2: 1 | E2: áeratikus hasnyák | F2: 1
A3: bájital | B3: 1 | C3: bazaltelementál | D3: 1 | E3: alanori csatamén | F3: 1
A4: bundás csirmáz | B4: 1 | C4: cápaölő tőr | D4: 1 | E4: Chara-din fattya | F4: 1
A5: büntető praglonc | B5: 1 | C5: degradátor | D5: 1 | E5: Dantor amulettje | F5: 1
A6: díszes rézpajzs | B6: 1 | C6: diuretikus kráken | D6: 1 | E6: dizen kulcs | F6: 1
A7: élőholt mirg | B7: 1 | C7: drónkeselyű | D7: 1 | E7: diuretikus kráken | F7: 1
A8: era formázó minta | B8: 1 | C8: élőholt sullár | D8: 1 | E8: drakolder szem | F8: 1
A9: fekete griff | B9: 1 | C9: esszenciakristály | D9: 1 | E9: élőholt ősmágus | F9: 1
A10: fpi formázó minta | B10: 1 | C10: Fekete Kehely | D10: 1 | E10: élőholt sullár | F10: 1
A11: goblin | B11: 1 | C11: fekete tű | D11: 1 | E11: északi tűzsárkány | F11: 1
A12: griffőniksz | B12: 1 | C12: gránitelementál | D12: 1 | E12: görgőte | F12: 1
A13: gyöngysor | B13: 1 | C13: joviális m.szockó | D13: 1 | E13: gránit őrszobor | F13: 1
A14: halcsont | B14: 1 | C14: kacagó szépia | D14: 1 | E14: hegyi góliát | F14: 1
A15: hamupók | B15: 1 | C15: kdole | D15: 1 | E15: hordóagyú mameluk | F15: 1
A16: koponya szimbólum | B16: 1 | C16: kisebb quwarg isten | D16: 1 | E16: káoszteknőc | F16: 1
A17: kígyóbőr öv | B17: 1 | C17: kneopatikus mollusk | D17: 1 | E17: kputtyintó csalán | F17: 1
A18: lebegő gomba | B18: 1 | C18: ködcsillag | D18: 1 | E18: krapixlon fürdőruha | F18: 1
A19: manó | B19: 1 | C19: ködmangó | D19: 1 | E19: lidércúr | F19: 1
A20: mirg | B20: 1 | C20: lovagi tabard | D20: 1 | E20: Luthius karkötője | F20: 1
A21: moa zafír | B21: 1 | C21: Mágikus Koponya | D21: 1 | E21: manakristály | F21: 1
A22: óriásféreg | B22: 1 | C22: Morbid | D22: 1 | E22: Mnebolath | F22: 1
A23: ovimon-bogyó | B23: 1 | C23: Muezli aranykeze | D23: 1 | E23: Morbid | F23: 1
A24: púderkő | B24: 1 | C24: ónix masszavadító | D24: 1 | E24: nagyobb vércápa | F24: 1
A25: quwarg tojás | B25: 1 | C25: piranha zsákvédő | D25: 1 | E25: nanda | F25: 1
A26: regeneráló gyűrű | B26: 1 | C26: quwarg nagymester | D26: 1 | E26: natali kő | F26: 1
A27: sötét motyogó | B27: 1 | C27: smaragd kulcs | D27: 1 | E27: norgat kulcs | F27: 1
A28: szem szimbólum | B28: 1 | C28: Szent Kulacs | D28: 1 | E28: noth szellem | F28: 1
A29: trófea nyaklánc | B29: 1 | C29: taposó tappancs | D29: 1 | E29: Orkhan Thai | F29: 1
A30: villám szimbólum | B30: 1 | C30: teknőcpajzs | D30: 1 | E30: őrült varázsló | F30: 1
A31: virág szimbólum | B31: 1 | C31: Tguarkhan | D31: 1 | E31: plazmacsillag | F31: 1
B32: =SUM(B1:B31)/COUNTA($A$1:$A$31) -> 1 | C32: törpe bakancs | D32: 1 | E32: pöfögő kregon | F32: 1
C33: tűzfőnix | D33: 1 | E33: pordémon | F33: 1
C34: velociraptor | D34: 1 | E34: praglonc hártya | F34: 1
D35: =SUM(D1:D34)/COUNTA($C$1:$C$34) -> 1 | E35: Pusztítás Botja | F35: 1
E36: quwarg parafenomén | F36: 1
E37: qwarg rohamosztagos | F37: 1
E38: Raia pallosa | F38: 1
E39: Raia szent lovagja | F39: 1
E40: Rughar familiárisa | F40: 1
E41: sárkánypikkely | F41: 1
E42: Sheran főzete | F42: 1
E43: sivatagi doareg | F43: 1
E44: Szent Pöröly | F44: 1
E45: szubreális vámpír | F45: 1
E46: taalru | F46: 1
E47: tüskés gigaféreg | F47: 1
E48: Urgod kesztyűje | F48: 1
E49: vadász quwarg | F49: 1
E50: velociraptor | F50: 1
E51: vérvörös köpeny | F51: 1
E52: zombi mester | F52: 1
F53: =SUM(F1:F52)/COUNTA($E$1:$E$52) -> 1

Sheet Tárgykészítés
A1: 1 | B1: vizestömlő | C1: 1 | D1: =COUNTA(E1:M1) -> 1 | E1: víz | N1: ásó | O1: =C2*C13*C15 -> 0 | P1: bogyógránát | Q1: =C38*C60 -> 1 | R1: bányászcsákány | S1: =C2*C36*C37 -> 1
A2: 1 | B2: bot | C2: 1 | D2: 6 | E2: ásó | F2: dárda | G2: kőhegyű lándzsa | H2: bányászcsákány | I2: csontszurony | J2: ezüsthegyű lándzsa | N2: bronzpenge | O2: =C6*C22*C26 -> 1 | P2: bronz fejpánt | Q2: =C26*C22*C18 -> 1 | R2: bronzpajzs | S2: =C22*C26 -> 1
A3: 1 | B3: kőkés | C3: 1 | D3: 1 | E3: kőhegyű lándzsa | N3: dárda | O3: =C2*C3 -> 1 | P3: bumeráng | Q3: =C13*C52 -> 1 | R3: bronzsisak | S3: =C22*C26 -> 1
A4: 1 | B4: csontkés | C4: 1 | D4: 1 | E4: csontszurony | N4: dobóháló | O4: =C27 -> 1 | P4: ezüsthegyű nyíl | Q4: =C33*C56 -> 1 | R4: csontszurony | S4: =C23*C27 -> 1
A5: 5 | B5: süntüske | C5: 1 | D5: 1 | E5: tüskecsapda | N5: furulya | O5: =C7*C49*C13 -> 1 | P5: ezüstshuriken | Q5: =C56 -> 1 | R5: dorony duda | S5: =C48*C50*C25 -> 1
A6: 3 | B6: tatubőr | C6: 1 | D6: 4 | E6: bronzpenge | F6: tatu dob | G6: vas fejpánt | H6: tatu ködmön | N6: kőhegyű lándzsa | O6: =C2*C3 -> 1 | P6: ezüsttőr | Q6: =C56 -> 1 | R6: ezüsthegyű lándzsa | S6: =C2*C56 -> 1
A7: 2 | B7: ormánygőte csont | C7: 1 | D7: 2 | E7: furulya | F7: távcső | N7: mérg. vas dobónyíl | O7: =C43*C38 -> 1 | P7: harci kalapács | Q7: =C36*C37 -> 1 | R7: ezüst kard | S7: =C56 -> 1
A8: 1 | B8: tüske | C8: 1 | D8: 1 | E8: mérgezett tüske | N8: mérg. vasnyil | O8: =C42*C38 -> 1 | P8: kígyóbőr kesztyű | Q8: =C18 -> 1 | R8: gromak páncél | S8: =C41*C45*C53 -> 1
A9: 1 | B9: kavadu lebeny | C9: 1 | D9: 1 | E9: pukkanó tűcsapda | N9: mérg. ubuk dobónyíl | O9: =C11*C35 -> 0 | P9: királyi korona | Q9: =C19*C28 -> 1 | R9: hosszú íj | S9: =C29*C31 -> 1
A10: 1 | B10: kavadu iszák | C10: 0 | D10: 2 | E10: gyenge méreg | F10: mérgezett tüske | N10: mérgezett tüske | O10: =C8*C11 -> 0 | P10: mászókampó | Q10: =C27*C36*C37 -> 1 | R10: kdole | S10: =C54*C51*C47*C46 -> 1
A11: 1 | B11: gyenge méreg | C11: 0 | D11: 2 | E11: mérg. ubuk dobónyíl | F11: mérgezett tüske | N11: nyílvessző | O11: =C33 -> 1 | P11: pukkanó tűcsapda | Q11: =C9*C33*C57*C38 -> 1 | R11: lótuszfőzet | S11: =C21*C12*C61 -> 1
A12: 5 | B12: víz | C12: 1 | D12: 1 | E12: lótuszfőzet | N12: rézpajzs | O12: =C22 -> 1 | P12: rövid íj | Q12: =C13*C29 -> 1 | R12: nyu-shuriken | S12: =C34*C25*C23 -> 1
A13: 3 | B13: smirglilevél | C13: 1 | D13: 5 | E13: ásó | F13: furulya | G13: bumeráng | H13: rövid íj | I13: távcső | N13: rézsisak | O13: =C22 -> 1 | P13: tatu ködmön | Q13: =C6 -> 1 | R13: rájabőr úszógatya | S13: =C58 -> 1
A14: 4 | B14: varányszem | C14: 1 | D14: 1 | E14: távcső | N14: sallank nyíl | O14: =C34*C32*C25*C33 -> 1 | P14: tolmokov-koktél | Q14: =C24*C41 -> 1 | R14: raptor szablya | S14: =C30*C55*C27 -> 1
A15: 1 | B15: lapockacsont | C15: 0 | D15: 1 | E15: ásó | N15: stuki lövedék | O15: =C22 -> 1 | P15: tüskecsapda | Q15: =C23*C5 -> 1 | R15: távcső | S15: =C17*C7*C13*C14 -> 1
A16: 10 | B16: drótszőr | C16: 1 | D16: 1 | E16: zárnyitó készlet | N16: tatu dob | O16: =C6*C44 -> 1 | P16: vas dobónyíl | Q16: =C36*C37*C33 -> 1 | R16: teknőcpajzs | S16: =C59 -> 0
A17: 1 | B17: grákóbőr | C17: 1 | D17: 1 | E17: távcső | N17: vas fejpánt | O17: =C6*C36*C37 -> 1 | P17: vashegyű lándzsa | Q17: =C36*C37*C30 -> 1 | R17: rézpáncél | S17: =C20*C22 -> 1
A18: 2 | B18: surranókígyó bőr | C18: 1 | D18: 2 | E18: bronz fejpánt | F18: kígyóbőr kesztyű | N18: zárnyitó készlet | O18: =C16 -> 1 | P18: vashegyű nyíl | Q18: =C36*C37*C33 -> 1 | R18: szuper dobóháló | S18: =C45 -> 1
A19: 250 | B19: aranypénz | C19: 1 | D19: =COUNTA(E19:N19) -> 1 | E19: királyi korona | O19: =SUM(O1:O18)/COUNTA(N1:N18) -> 0.8333333333 | Q19: =SUM(Q1:Q18)/COUNTA(P1:P18) -> 1 | S19: =SUM(S1:S18)/COUNTA(R1:R18) -> 0.9444444444
A20: 1 | B20: bőrpáncél | C20: 1 | D20: 1 | E20: rézpáncél
A21: 1 | B21: mákrózsa | C21: 1 | D21: 1 | E21: lótuszfőzet
A22: 8 | B22: rézdarab | C22: 1 | D22: 8 | E22: bronzpenge | F22: rézpajzs | G22: rézsisak | H22: stukilövedék | I22: bronz fejpánt | J22: bronzpajzs | K22: bronzsisak | L22: rézpáncél
A23: 1 | B23: lapkorong | C23: 1 | D23: 2 | E23: tüskecsapda | F23: nyu-shuriken
A24: 1 | B24: zöld üveg | C24: 1 | D24: 2 | E24: ragasztó | F24: tolmokov-koktél
A25: 3 | B25: ragasztó | C25: 1 | D25: 3 | E25: sallank nyíl | F25: dorony duda | G25: nyu-shuriken
A26: 3 | B26: óndarab | C26: 1 | D26: 4 | E26: bronzpenge | F26: bronz fejpánt | G26: bronzpajzs | H26: bronzsisak
A27: 4 | B27: kötél | C27: 1 | D27: 3 | E27: dobóháló | F27: mászókampó | G27: raptor szablya
A28: 12 | B28: fekete gyöngy | C28: 1 | D28: 1 | E28: királyi korona
A29: 1 | B29: magszimbél | C29: 1 | D29: 2 | E29: rövid íj | F29: hosszú íj
A30: 1 | B30: fémrúd | C30: 1 | D30: 2 | E30: vashegyű lándzsa | F30: raptor szablya
A31: 1 | B31: vapárág | C31: 1 | D31: 1 | E31: hosszú íj
A32: 1 | B32: hosszú íj | C32: 1 | D32: 1 | E32: sallank nyíl
A33: 1 | B33: madártoll | C33: 1 | D33: 6 | E33: nyílvessző | F33: sallank nyíl | G33: ezüsthegyű nyíl | H33: pukkanó tűcsapda | I33: vas dobónyíl | J33: vashegyű nyíl
A34: 3 | B34: sallank karom | C34: 1 | D34: 2 | E34: sallank nyíl | F34: nyu-shuriken
A35: 1 | B35: ubuk dobónyíl | C35: 1 | D35: 1 | E35: mérg. ubuk dobónyíl
A36: 7 | B36: vasérc | C36: 1 | D36: 7 | E36: vas fejpánt | F36: harci kalapács | G36: mászókampó | H36: vas dobónyíl | I36: vashegyű lándzsa | J36: vashegyű nyíl | K36: bányászcsákány
A37: 14 | B37: pirkit | C37: 1 | D37: 7 | E37: vas fejpánt | F37: harci kalapács | G37: mászókampó | H37: vas dobónyíl | I37: vashegyű lándzsa | J37: vashegyű nyíl | K37: bányászcsákány
A38: 3 | B38: ugh méreg | C38: 1 | D38: 4 | E38: mérg. vas dobónyíl | F38: mérg. vasnyil | G38: bogyógránát | H38: pukkanó tűcsapda
A39: 1 | B39: sullár hólyag | C39: 1 | D39: 1 | E39: spiritusz
A40: 1 | B40: uzbány csőr | C40: 1 | D40: 1 | E40: ugh méreg
A41: 10 | B41: spiritusz | C41: 1 | D41: 2 | E41: tolmokov-koktél | F41: gromak páncél
A42: 1 | B42: vashegyű nyíl | C42: 1 | D42: 1 | E42: mérg. vasnyil
A43: 1 | B43: vas dobónyíl | C43: 1 | D43: 1 | E43: mérg. vas dobónyíl
A44: 1 | B44: amniosz | C44: 1 | D44: 1 | E44: tatu dob
A45: 2 | B45: szuperkötél | C45: 1 | D45: 2 | E45: gromak páncél | F45: szuper dobóháló
A46: 1 | B46: fűszertartó | C46: 1 | D46: 1 | E46: kdole
A47: 4 | B47: sáfránypor | C47: 1 | D47: 1 | E47: kdole
A48: 1 | B48: doronytüdő | C48: 1 | D48: 1 | E48: dorony duda
A49: 1 | B49: acélpengőke | C49: 1 | D49: 1 | E49: furulya
A50: 3 | B50: furulya | C50: 1 | D50: 1 | E50: dorony duda
A51: 1 | B51: tatudob | C51: 1 | D51: 1 | E51: kdole
A52: 1 | B52: lajhárcsont | C52: 1 | D52: 1 | E52: bumeráng
A53: 2 | B53: gromak bőr | C53: 1 | D53: 1 | E53: gromak páncél
A54: 1 | B54: tyrex csont | C54: 1 | D54: 1 | E54: kdole
A55: 1 | B55: raptor karom | C55: 1 | D55: 1 | E55: raptor szablya
A56: 6 | B56: ezüstdarab | C56: 1 | D56: 5 | E56: ezüsthegyű nyíl | F56: ezüstshuriken | G56: ezüsttőr | H56: ezüsthegyű lándzsa | I56: ezüstkard
A57: 1 | B57: acéltű | C57: 1 | D57: 1 | E57: pukkanó tűcsapda
A58: 6 | B58: rájabőr | C58: 1 | D58: 1 | E58: rájabőr úszógatya
A59: 1 | B59: teknőcteknő | C59: 0 | D59: 1 | E59: teknőcpajzs
A60: 1 | B60: kaktuszbogyó | C60: 1 | D60: 1 | E60: bogyógránát
A61: 1 | B61: lótuszvirág | C61: 1 | D61: 1 | E61: lótuszfőzet
D62: =SUMIF(C1:C61,"=1",D1:D61)/SUM(D1:D61) -> 0.9508196721
